[Event "New Zealand Rapid Championship"]
[Site "Wellington"]
[Date "2023.01.12"]
[Round "6.2"]
[White "Shoker, Samy"]
[Black "Cummings, Nick"]
[Result "1-0"]
[TimeControl "25+5"]
[WhiteTitle "GM"]
[WhiteFideId "627143"]
[BlackFideId "4301218"]
[WhiteElo "2440"]
[BlackElo "2038"]

1. Nf3 {[%clk 00:25:08]} {[%emt 00:00:02]} Nf6 {[%clk 00:24:56]} {[%emt
00:00:15]} 2. g3 {[%clk 00:25:11]} {[%emt 00:00:04]} g6 {[%clk 00:24:52]}
{[%emt 00:00:07]} 3. Bg2 {[%clk 00:25:15]} c5 {[%clk 00:24:50]} {[%emt
00:00:08]} 4. c4 {[%clk 00:25:16]} {[%emt 00:00:06]} Bg7 {[%clk 00:24:54]} 5.
Nc3 {[%clk 00:25:20]} {[%emt 00:00:01]} O-O {[%clk 00:24:55]} {[%emt 00:00:03]}
6. a3 {[%clk 00:25:23]} {[%emt 00:00:03]} Nc6 {[%clk 00:24:30]} {[%emt
00:00:29]} 7. d3 {[%clk 00:25:24]} {[%emt 00:00:04]} a6 {[%clk 00:23:59]}
{[%emt 00:00:37]} 8. Rb1 {[%clk 00:25:24]} {[%emt 00:00:04]} Rb8 {[%clk
00:22:58]} {[%emt 00:01:06]} 9. b4 {[%clk 00:25:23]} {[%emt 00:00:05]} cxb4
{[%clk 00:22:27]} {[%emt 00:00:37]} 10. axb4 {[%clk 00:25:27]} {[%emt
00:00:01]} b5 {[%clk 00:22:27]} {[%emt 00:00:06]} 11. cxb5 {[%clk 00:25:29]}
{[%emt 00:00:03]} axb5 {[%clk 00:22:29]} {[%emt 00:00:02]} 12. O-O {[%clk
00:25:30]} {[%emt 00:00:03]} Qc7 {[%clk 00:21:09]} {[%emt 00:01:25]} 13. Bf4
{[%clk 00:23:14]} {[%emt 00:02:21]} e5 {[%clk 00:20:00]} {[%emt 00:01:14]} 14.
Bg5 {[%clk 00:22:33]} {[%emt 00:00:45]} Ne7 {[%clk 00:17:42]} {[%emt 00:02:24]}
15. Qd2 {[%clk 00:21:36]} {[%emt 00:01:02]} d6 {[%clk 00:16:58]} {[%emt
00:00:50]} 16. Rfc1 {[%clk 00:21:28]} {[%emt 00:00:13]} Qd7 {[%clk 00:16:06]}
{[%emt 00:00:57]} 17. d4 {[%clk 00:20:07]} {[%emt 00:01:26]} exd4 {[%clk
00:12:41]} {[%emt 00:03:30]} 18. Nxd4 {[%clk 00:20:05]} {[%emt 00:00:06]} Bb7
{[%clk 00:12:29]} {[%emt 00:00:17]} 19. e4 {[%clk 00:19:37]} {[%emt 00:00:33]}
Ba8 {[%clk 00:12:02]} {[%emt 00:00:32]} 20. f3 {[%clk 00:17:48]} {[%emt
00:01:54]} Ne8 {[%clk 00:10:10]} {[%emt 00:01:56]} 21. Bf1 {[%clk 00:16:34]}
{[%emt 00:01:20]} Nc7 {[%clk 00:08:39]} {[%emt 00:01:36]} 22. Ndxb5 {[%clk
00:15:39]} {[%emt 00:01:00]} Nxb5 {[%clk 00:08:41]} {[%emt 00:00:03]} 23. Nxb5
{[%clk 00:15:32]} {[%emt 00:00:12]} Nc8 {[%clk 00:07:33]} {[%emt 00:01:13]} 24.
Nc7 {[%clk 00:13:22]} {[%emt 00:02:14]} Na7 {[%clk 00:05:57]} {[%emt 00:01:40]}
25. Nxa8 {[%clk 00:12:56]} {[%emt 00:00:31]} Rxa8 {[%clk 00:06:00]} {[%emt
00:00:03]} 26. b5 {[%clk 00:12:56]} {[%emt 00:00:05]} Rab8 {[%clk 00:05:56]}
{[%emt 00:00:09]} 27. Qd3 {[%clk 00:11:00]} {[%emt 00:01:59]} Rfc8 {[%clk
00:05:14]} {[%emt 00:00:49]} 28. Rxc8+ {[%clk 00:09:42]} {[%emt 00:01:23]} Nxc8
{[%clk 00:04:16]} {[%emt 00:01:03]} 29. Be3 {[%clk 00:09:40]} {[%emt 00:00:07]}
Nb6 {[%clk 00:04:07]} {[%emt 00:00:14]} 30. Rd1 {[%clk 00:09:43]} {[%emt
00:00:02]} Bf8 {[%clk 00:03:53]} {[%emt 00:00:19]} 31. f4 {[%clk 00:07:41]}
{[%emt 00:02:07]} Qe8 {[%clk 00:03:04]} {[%emt 00:00:54]} 32. Rb1 {[%clk
00:06:47]} {[%emt 00:00:59]} Qe6 {[%clk 00:02:46]} {[%emt 00:00:23]} 33. f5
{[%clk 00:06:08]} {[%emt 00:00:43]} Qe7 {[%clk 00:02:01]} {[%emt 00:00:49]} 34.
Ra1 {[%clk 00:05:32]} {[%emt 00:00:42]} Qc7 {[%clk 00:01:31]} {[%emt 00:00:38]}
35. Rc1 {[%clk 00:05:22]} {[%emt 00:00:13]} Qe7 {[%clk 00:01:05]} {[%emt
00:00:31]} 36. Rc6 {[%clk 00:05:18]} {[%emt 00:00:09]} Nd7 {[%clk 00:01:07]}
{[%emt 00:00:03]} 37. Rc7 {[%clk 00:04:51]} {[%emt 00:00:30]} Qd8 {[%clk
00:01:04]} {[%emt 00:00:10]} 38. Ra7 {[%clk 00:04:48]} {[%emt 00:00:07]} Ne5
{[%clk 00:01:06]} {[%emt 00:00:04]} 39. Qd5 {[%clk 00:04:42]} {[%emt 00:00:09]}
Qe8 {[%clk 00:00:27]} {[%emt 00:00:46]} 40. Bf4 {[%clk 00:02:37]} {[%emt
00:02:10]} Bg7 {[%clk 00:00:30]} {[%emt 00:00:02]} 41. Kg2 {[%clk 00:00:57]}
{[%emt 00:01:45]} g5 {[%clk 00:00:10]} {[%emt 00:00:24]} 42. Bxe5 {[%clk
00:00:40]} {[%emt 00:00:22]} Bxe5 {[%clk 00:00:13]} {[%emt 00:00:02]} 43. Bc4
{[%clk 00:00:43]} {[%emt 00:00:02]} Kg7 {[%clk 00:00:06]} {[%emt 00:00:12]} 44.
Rxf7+ {[%clk 00:00:43]} {[%emt 00:00:05]} Kh6 {[%emt 00:00:21]} 45. Rc7 {[%clk
00:00:29]} Bg7 {[%clk 00:00:07]} {[%emt 00:00:07]} 46. Qxd6+ {[%clk 00:00:30]}
{[%emt 00:00:04]} Kh5 {[%clk 00:00:09]} {[%emt 00:00:03]} 47. Bf7+ {[%clk
00:00:34]} {[%emt 00:00:02]} 1-0

[Event "New Zealand Rapid Championship"]
[Site "Wellington"]
[Date "2023.01.12"]
[Round "6.3"]
[White "Hague, Ben"]
[Black "Winsley, Nicholas"]
[Result "1-0"]
[TimeControl "25+5"]
[WhiteTitle "FM"]
[WhiteFideId "405647"]
[BlackFideId "4315146"]
[WhiteElo "2410"]
[BlackElo "1854"]

1. d4 {[%clk 00:25:07]} {[%emt 00:00:02]} d5 {[%clk 00:25:03]} {[%emt
00:00:09]} 2. c4 {[%clk 00:25:10]} c6 {[%clk 00:25:06]} {[%emt 00:00:02]} 3.
Nc3 {[%clk 00:25:09]} {[%emt 00:00:06]} Nf6 {[%clk 00:25:03]} {[%emt 00:00:09]}
4. e3 {[%clk 00:25:07]} {[%emt 00:00:07]} a6 {[%clk 00:23:57]} {[%emt
00:01:12]} 5. Nf3 {[%clk 00:24:31]} {[%emt 00:00:40]} Bf5 {[%clk 00:23:41]}
{[%emt 00:00:20]} 6. Qb3 {[%clk 00:24:15]} {[%emt 00:00:22]} Ra7 {[%clk
00:22:21]} {[%emt 00:01:25]} 7. cxd5 {[%clk 00:23:43]} {[%emt 00:00:37]} cxd5
{[%clk 00:22:17]} {[%emt 00:00:09]} 8. Be2 {[%clk 00:23:45]} {[%emt 00:00:03]}
e6 {[%clk 00:21:55]} {[%emt 00:00:27]} 9. O-O {[%clk 00:23:47]} {[%emt
00:00:03]} Nbd7 {[%clk 00:21:10]} {[%emt 00:00:51]} 10. Bd2 {[%clk 00:23:36]}
{[%emt 00:00:15]} Bd6 {[%clk 00:20:46]} {[%emt 00:00:29]} 11. Rfc1 {[%clk
00:23:06]} {[%emt 00:00:35]} b5 {[%clk 00:18:38]} {[%emt 00:02:14]} 12. Bxb5
{[%clk 00:21:01]} {[%emt 00:02:09]} axb5 {[%clk 00:18:17]} {[%emt 00:00:27]} 13.
Nxb5 {[%clk 00:21:04]} {[%emt 00:00:01]} Ra6 {[%clk 00:16:42]} {[%emt
00:01:41]} 14. Ba5 {[%clk 00:14:48]} {[%emt 00:06:20]} Qxa5 {[%clk 00:13:35]}
{[%emt 00:03:11]} 15. Rc8+ {[%clk 00:14:42]} {[%emt 00:00:11]} Ke7 {[%clk
00:13:19]} {[%emt 00:00:20]} 16. Rxh8 {[%clk 00:14:45]} {[%emt 00:00:03]} Rb6
{[%clk 00:11:27]} {[%emt 00:01:58]} 17. a4 {[%clk 00:14:26]} {[%emt 00:00:23]}
Nf8 {[%clk 00:08:37]} {[%emt 00:02:53]} 18. Ne5 {[%clk 00:12:55]} {[%emt
00:01:38]} Ne4 {[%clk 00:07:52]} {[%emt 00:00:50]} 19. Nxd6 {[%clk 00:06:59]}
{[%emt 00:06:01]} Kxd6 {[%clk 00:02:40]} {[%emt 00:05:17]} 20. Qa3+ {[%clk
00:06:52]} {[%emt 00:00:13]} Qb4 {[%clk 00:02:40]} {[%emt 00:00:05]} 21. Qxb4+
{[%clk 00:06:51]} {[%emt 00:00:05]} Rxb4 {[%clk 00:02:42]} {[%emt 00:00:03]} 22.
Rxf8 {[%clk 00:06:54]} {[%emt 00:00:02]} f6 {[%clk 00:01:52]} {[%emt 00:00:55]}
23. Nd3 {[%clk 00:06:03]} {[%emt 00:00:56]} Rb7 {[%clk 00:01:49]} {[%emt
00:00:08]} 24. a5 {[%clk 00:05:55]} {[%emt 00:00:13]} Ra7 {[%clk 00:01:39]}
{[%emt 00:00:15]} 25. a6 {[%clk 00:05:51]} {[%emt 00:00:10]} Nd2 {[%clk
00:01:10]} {[%emt 00:00:33]} 26. Nc5 {[%clk 00:05:52]} {[%emt 00:00:03]} Nc4
{[%clk 00:01:06]} {[%emt 00:00:09]} 27. Rb8 {[%clk 00:05:40]} {[%emt 00:00:17]}
1-0

[Event "New Zealand Rapid Championship"]
[Site "Wellington"]
[Date "2023.01.12"]
[Round "6.4"]
[White "Van Riemsdijk, Herman C."]
[Black "Wang, Justin Zhide"]
[Result "1-0"]
[TimeControl "25+5"]
[WhiteTitle "IM"]
[WhiteFideId "2100053"]
[BlackFideId "4312830"]
[WhiteElo "2370"]
[BlackElo "1619"]

1. e4 {[%clk 00:25:08]} e6 {[%clk 00:25:07]} {[%emt 00:00:04]} 2. d4 {[%clk
00:25:08]} {[%emt 00:00:04]} d5 {[%clk 00:25:06]} {[%emt 00:00:07]} 3. Nc3
{[%clk 00:25:08]} {[%emt 00:00:06]} Nf6 {[%clk 00:25:08]} {[%emt 00:00:02]} 4.
Bg5 {[%clk 00:25:05]} {[%emt 00:00:07]} Be7 {[%clk 00:25:08]} {[%emt 00:00:06]}
5. e5 {[%clk 00:25:01]} {[%emt 00:00:08]} Nfd7 {[%clk 00:25:11]} {[%emt
00:00:04]} 6. h4 {[%clk 00:24:59]} {[%emt 00:00:07]} a6 {[%clk 00:25:06]}
{[%emt 00:00:09]} 7. Qg4 {[%clk 00:24:38]} {[%emt 00:00:27]} Bxg5 {[%clk
00:24:53]} {[%emt 00:00:17]} 8. hxg5 {[%clk 00:24:33]} {[%emt 00:00:11]} c5
{[%clk 00:24:49]} {[%emt 00:00:08]} 9. dxc5 {[%clk 00:23:46]} {[%emt 00:00:52]}
Nxe5 {[%clk 00:24:46]} {[%emt 00:00:08]} 10. Qg3 {[%emt 00:00:28]} Nbc6 {[%clk
00:23:47]} {[%emt 00:00:45]} 11. O-O-O {[%clk 00:23:16]} {[%emt 00:00:29]} Qe7
{[%clk 00:23:38]} {[%emt 00:00:15]} 12. f4 {[%clk 00:22:10]} {[%emt 00:01:10]}
Nd7 {[%clk 00:22:09]} {[%emt 00:01:35]} 13. f5 {[%clk 00:21:44]} {[%emt
00:00:30]} Qxc5 {[%clk 00:21:27]} {[%emt 00:00:48]} 14. fxe6 {[%clk 00:20:21]}
{[%emt 00:01:27]} fxe6 {[%clk 00:21:23]} {[%emt 00:00:09]} 15. Bd3 {[%clk
00:20:21]} {[%emt 00:00:05]} Nde5 {[%clk 00:21:03]} {[%emt 00:00:26]} 16. Bxh7
{[%clk 00:20:00]} {[%emt 00:00:25]} Bd7 {[%clk 00:20:51]} {[%emt 00:00:17]} 17.
Nf3 {[%clk 00:18:23]} {[%emt 00:01:40]} Nxf3 {[%clk 00:20:09]} {[%emt
00:00:49]} 18. Bg6+ {[%clk 00:17:29]} {[%emt 00:00:59]} Ke7 {[%clk 00:20:03]}
{[%emt 00:00:12]} 19. gxf3 {[%clk 00:14:57]} {[%emt 00:02:36]} Qd6 {[%clk
00:19:36]} {[%emt 00:00:32]} 20. f4 {[%clk 00:11:13]} {[%emt 00:03:49]} Raf8
{[%clk 00:18:46]} {[%emt 00:00:56]} 21. Rhf1 {[%clk 00:10:36]} {[%emt
00:00:41]} Kd8 {[%clk 00:18:09]} {[%emt 00:00:44]} 22. Ne4 {[%clk 00:09:55]}
{[%emt 00:00:45]} Qb4 {[%clk 00:17:11]} {[%emt 00:01:03]} 23. a3 {[%clk
00:09:33]} {[%emt 00:00:27]} Qe7 {[%clk 00:16:42]} {[%emt 00:00:34]} 24. Nc3
{[%clk 00:09:16]} {[%emt 00:00:21]} b5 {[%clk 00:16:13]} {[%emt 00:00:35]} 25.
Qf2 {[%clk 00:08:24]} {[%emt 00:00:56]} Kc7 {[%clk 00:14:25]} {[%emt 00:01:54]}
26. Rxd5 {[%clk 00:06:31]} {[%emt 00:01:57]} b4 {[%clk 00:13:14]} {[%emt
00:01:17]} 27. axb4 {[%clk 00:06:29]} {[%emt 00:00:07]} Qxb4 {[%clk 00:13:09]}
{[%emt 00:00:11]} 28. Qd2 {[%clk 00:06:27]} {[%emt 00:00:06]} Rd8 {[%clk
00:12:26]} {[%emt 00:00:49]} 29. Rd3 {[%clk 00:03:28]} {[%emt 00:03:04]} Bc8
{[%clk 00:11:44]} {[%emt 00:00:46]} 30. Be4 {[%clk 00:03:19]} {[%emt 00:00:14]}
Rxd3 {[%clk 00:11:17]} {[%emt 00:00:34]} 31. Qxd3 {[%clk 00:03:17]} {[%emt
00:00:07]} Rd8 {[%clk 00:10:53]} {[%emt 00:00:28]} 32. Qe3 {[%clk 00:02:58]}
{[%emt 00:00:23]} Qd4 {[%clk 00:10:43]} {[%emt 00:00:17]} 33. Qf3 {[%clk
00:02:46]} {[%emt 00:00:17]} Qd2+ {[%clk 00:10:11]} {[%emt 00:00:37]} 34. Kb1
{[%clk 00:02:50]} Nd4 {[%clk 00:09:59]} {[%emt 00:00:16]} 35. Qd3 {[%clk
00:02:30]} {[%emt 00:00:24]} Qxd3 {[%clk 00:09:01]} {[%emt 00:01:04]} 36. Bxd3
{[%clk 00:02:34]} Nf5 {[%clk 00:08:58]} {[%emt 00:00:08]} 37. Bxf5 {[%clk
00:02:28]} {[%emt 00:00:11]} exf5 {[%clk 00:09:02]} {[%emt 00:00:02]} 38. Rd1
{[%clk 00:02:31]} {[%emt 00:00:02]} Rxd1+ {[%clk 00:08:56]} {[%emt 00:00:11]}
39. Nxd1 {[%clk 00:02:35]} {[%emt 00:00:01]} Kc6 {[%clk 00:09:01]} 40. Ne3
{[%clk 00:02:38]} {[%emt 00:00:01]} Kc5 {[%clk 00:09:02]} {[%emt 00:00:04]} 41.
c3 {[%clk 00:02:42]} a5 {[%clk 00:09:07]} {[%emt 00:00:02]} 42. Kc2 {[%clk
00:02:41]} {[%emt 00:00:06]} Bb7 {[%clk 00:09:11]} 43. Kb3 {[%clk 00:02:42]}
{[%emt 00:00:03]} g6 {[%clk 00:09:13]} {[%emt 00:00:02]} 44. Ka4 {[%clk
00:02:41]} {[%emt 00:00:06]} Bc6+ {[%clk 00:08:24]} {[%emt 00:00:55]} 45. Kxa5
{[%clk 00:02:44]} {[%emt 00:00:03]} Bb5 {[%clk 00:08:20]} {[%emt 00:00:09]} 46.
b4 {[%clk 00:02:42]} {[%emt 00:00:05]} Kc6 {[%clk 00:08:12]} {[%emt 00:00:14]}
47. c4 {[%clk 00:02:42]} {[%emt 00:00:04]} 1-0

[Event "New Zealand Rapid Championship"]
[Site "Wellington"]
[Date "2023.01.12"]
[Round "6.5"]
[White "Ker, Anthony F"]
[Black "Sole, Michael D"]
[Result "1-0"]
[TimeControl "25+5"]
[WhiteTitle "IM"]
[WhiteFideId "4300084"]
[BlackFideId "4309030"]
[WhiteElo "2359"]
[BlackElo "2093"]

1. e4 {[%clk 00:25:08]} e5 {[%clk 00:25:04]} {[%emt 00:00:07]} 2. Nf3 {[%clk
00:25:09]} {[%emt 00:00:06]} Nc6 {[%clk 00:25:05]} {[%emt 00:00:03]} 3. d4
{[%clk 00:25:09]} {[%emt 00:00:04]} exd4 {[%clk 00:25:09]} {[%emt 00:00:02]} 4.
Bc4 {[%clk 00:25:07]} {[%emt 00:00:06]} Bc5 {[%clk 00:25:07]} {[%emt 00:00:07]}
5. c3 {[%clk 00:25:07]} {[%emt 00:00:06]} Nf6 {[%clk 00:25:06]} {[%emt
00:00:07]} 6. cxd4 {[%clk 00:25:06]} {[%emt 00:00:07]} Bb4+ {[%clk 00:25:07]}
{[%emt 00:00:02]} 7. Bd2 {[%clk 00:24:56]} {[%emt 00:00:14]} Nxe4 {[%clk
00:24:54]} {[%emt 00:00:20]} 8. Bxb4 {[%clk 00:23:34]} {[%emt 00:01:26]} Nxb4
{[%emt 00:00:13]} 9. Bxf7+ {[%clk 00:23:31]} {[%emt 00:00:04]} Kxf7 {[%clk
00:24:54]} 10. Qb3+ {[%clk 00:23:28]} {[%emt 00:00:08]} Kf8 {[%clk 00:24:43]}
{[%emt 00:00:16]} 11. Qxb4+ {[%clk 00:23:29]} {[%emt 00:00:04]} Qe7 {[%clk
00:24:46]} {[%emt 00:00:02]} 12. Qxe7+ {[%clk 00:23:27]} {[%emt 00:00:07]} Kxe7
{[%clk 00:24:48]} {[%emt 00:00:03]} 13. O-O {[%clk 00:23:23]} {[%emt 00:00:10]}
Kd8 {[%clk 00:24:35]} {[%emt 00:00:18]} 14. Re1 {[%clk 00:22:21]} {[%emt
00:01:07]} Nf6 {[%clk 00:24:29]} {[%emt 00:00:11]} 15. Nc3 {[%clk 00:22:01]}
{[%emt 00:00:25]} d6 {[%clk 00:24:33]} {[%emt 00:00:01]} 16. Ng5 {[%clk
00:20:09]} {[%emt 00:01:58]} Rf8 {[%clk 00:24:26]} {[%emt 00:00:12]} 17. f4
{[%clk 00:19:53]} {[%emt 00:00:21]} h6 {[%clk 00:22:40]} {[%emt 00:01:50]} 18.
Ne6+ {[%clk 00:19:51]} {[%emt 00:00:07]} Bxe6 {[%clk 00:22:43]} {[%emt
00:00:02]} 19. Rxe6 {[%clk 00:19:49]} {[%emt 00:00:06]} Kd7 {[%clk 00:22:20]}
{[%emt 00:00:29]} 20. Rae1 {[%clk 00:19:49]} {[%emt 00:00:05]} Rfe8 {[%clk
00:19:46]} {[%emt 00:02:39]} 21. f5 {[%clk 00:19:05]} {[%emt 00:00:49]} Rxe6
{[%clk 00:17:54]} {[%emt 00:01:57]} 22. Rxe6 {[%clk 00:19:00]} {[%emt
00:00:11]} c6 {[%clk 00:16:48]} {[%emt 00:01:11]} 23. g4 {[%clk 00:17:49]}
{[%emt 00:01:16]} a5 {[%clk 00:14:24]} {[%emt 00:02:29]} 24. h4 {[%clk
00:17:09]} {[%emt 00:00:44]} Re8 {[%clk 00:13:24]} {[%emt 00:01:05]} 25. g5
{[%clk 00:15:43]} {[%emt 00:01:32]} Ng4 {[%clk 00:12:45]} {[%emt 00:00:44]} 26.
Rg6 {[%clk 00:13:32]} {[%emt 00:02:15]} hxg5 {[%clk 00:09:16]} {[%emt
00:03:34]} 27. Rxg7+ {[%clk 00:13:01]} {[%emt 00:00:38]} Re7 {[%clk 00:09:18]}
{[%emt 00:00:01]} 28. Rxg5 {[%clk 00:11:33]} {[%emt 00:01:33]} Ne3 {[%clk
00:08:16]} {[%emt 00:01:08]} 29. Kf2 {[%clk 00:11:17]} {[%emt 00:00:20]} Nc4
{[%clk 00:08:03]} {[%emt 00:00:19]} 30. b3 {[%clk 00:11:10]} {[%emt 00:00:13]}
Nd2 {[%clk 00:08:04]} {[%emt 00:00:04]} 31. h5 {[%clk 00:10:41]} {[%emt
00:00:34]} b5 {[%clk 00:08:02]} {[%emt 00:00:07]} 32. Rg6 {[%clk 00:08:34]}
{[%emt 00:02:10]} b4 {[%clk 00:07:43]} {[%emt 00:00:25]} 33. Ne2 {[%clk
00:08:36]} {[%emt 00:00:03]} Ne4+ {[%clk 00:06:45]} {[%emt 00:01:03]} 34. Kg2
{[%clk 00:08:37]} {[%emt 00:00:04]} Rf7 {[%clk 00:05:22]} {[%emt 00:01:28]} 35.
Kf3 {[%clk 00:08:04]} {[%emt 00:00:38]} Nc3 {[%clk 00:04:38]} {[%emt 00:00:50]}
36. Ng3 {[%clk 00:07:48]} {[%emt 00:00:20]} Nxa2 {[%clk 00:04:33]} {[%emt
00:00:10]} 37. h6 {[%clk 00:07:38]} {[%emt 00:00:15]} Ke7 {[%emt 00:01:34]} 38.
Re6+ {[%clk 00:06:37]} Kd7 {[%clk 00:02:58]} {[%emt 00:01:17]} 39. Kg4 {[%clk
00:06:38]} {[%emt 00:00:03]} a4 {[%clk 00:02:54]} {[%emt 00:00:10]} 40. bxa4
{[%clk 00:05:39]} {[%emt 00:01:03]} b3 {[%clk 00:02:48]} {[%emt 00:00:11]} 41.
Re3 {[%clk 00:05:05]} {[%emt 00:00:38]} Nc1 {[%clk 00:02:34]} {[%emt 00:00:19]}
42. Ne2 {[%clk 00:05:01]} {[%emt 00:00:08]} b2 {[%clk 00:02:15]} {[%emt
00:00:25]} 43. Nc3 {[%clk 00:05:03]} {[%emt 00:00:03]} Na2 {[%clk 00:01:40]}
{[%emt 00:00:39]} 44. Nb1 {[%clk 00:05:02]} {[%emt 00:00:05]} 1-0

[Event "New Zealand Rapid Championship"]
[Site "Wellington"]
[Date "2023.01.12"]
[Round "6.6"]
[White "Zhang, Kendrick Botong"]
[Black "Carpinter, Anthony L"]
[Result "1/2-1/2"]
[TimeControl "25+5"]
[WhiteTitle "CM"]
[WhiteFideId "4307704"]
[BlackFideId "4300238"]
[WhiteElo "1870"]
[BlackElo "2147"]

1. e4 {[%clk 00:25:08]} {[%emt 00:00:02]} e6 {[%clk 00:25:03]} {[%emt
00:00:08]} 2. d4 {[%clk 00:25:11]} {[%emt 00:00:03]} d5 {[%clk 00:25:03]}
{[%emt 00:00:04]} 3. Nc3 {[%clk 00:25:13]} {[%emt 00:00:03]} Nf6 {[%clk
00:25:01]} {[%emt 00:00:07]} 4. e5 {[%clk 00:25:09]} {[%emt 00:00:08]} Nfd7
{[%clk 00:24:59]} {[%emt 00:00:08]} 5. f4 {[%clk 00:25:08]} {[%emt 00:00:06]}
c5 {[%clk 00:24:59]} {[%emt 00:00:07]} 6. Nf3 {[%clk 00:25:09]} {[%emt
00:00:02]} Nc6 {[%clk 00:24:58]} {[%emt 00:00:06]} 7. Be3 {[%clk 00:25:02]}
{[%emt 00:00:13]} Be7 {[%clk 00:24:41]} {[%emt 00:00:21]} 8. Qd2 {[%clk
00:24:12]} {[%emt 00:00:55]} O-O {[%clk 00:24:18]} {[%emt 00:00:28]} 9. Be2
{[%clk 00:16:43]} {[%emt 00:07:35]} a6 {[%clk 00:22:38]} {[%emt 00:01:44]} 10.
O-O {[%clk 00:15:30]} {[%emt 00:01:18]} b5 {[%clk 00:22:12]} {[%emt 00:00:32]}
11. a3 {[%clk 00:12:54]} {[%emt 00:02:41]} Rb8 {[%clk 00:18:09]} {[%emt
00:04:07]} 12. dxc5 {[%emt 00:01:51]} Nxc5 {[%clk 00:17:45]} {[%emt 00:00:02]}
13. b4 {[%clk 00:11:24]} {[%emt 00:00:16]} Nd7 {[%clk 00:17:23]} {[%emt
00:00:27]} 14. Bd3 {[%clk 00:10:13]} {[%emt 00:01:17]} Nb6 {[%clk 00:16:43]}
{[%emt 00:00:46]} 15. Ne2 {[%clk 00:10:12]} {[%emt 00:00:06]} Nc4 {[%clk
00:14:29]} {[%emt 00:02:18]} 16. Qc1 {[%clk 00:10:16]} {[%emt 00:00:01]} f6
{[%clk 00:13:43]} {[%emt 00:00:51]} 17. Ned4 {[%clk 00:09:29]} {[%emt
00:00:51]} Bd7 {[%clk 00:11:13]} {[%emt 00:02:34]} 18. Nxc6 {[%clk 00:06:57]}
{[%emt 00:02:39]} Bxc6 {[%clk 00:11:00]} {[%emt 00:00:18]} 19. exf6 {[%clk
00:06:45]} {[%emt 00:00:17]} Bxf6 {[%clk 00:10:28]} {[%emt 00:00:36]} 20. Bd4
{[%clk 00:06:45]} {[%emt 00:00:05]} Bxd4+ {[%clk 00:07:51]} {[%emt 00:02:43]}
21. Nxd4 {[%clk 00:06:47]} {[%emt 00:00:02]} Qb6 {[%clk 00:07:49]} {[%emt
00:00:07]} 22. c3 {[%clk 00:06:45]} {[%emt 00:00:08]} Rbe8 {[%clk 00:05:35]}
{[%emt 00:02:19]} 23. Bxc4 {[%clk 00:04:03]} {[%emt 00:02:47]} dxc4 {[%clk
00:05:25]} {[%emt 00:00:15]} 24. Qe3 {[%clk 00:03:58]} {[%emt 00:00:08]} Bd5
{[%clk 00:05:26]} {[%emt 00:00:06]} 25. Rae1 {[%clk 00:03:29]} {[%emt
00:00:31]} Qb7 {[%clk 00:05:08]} {[%emt 00:00:26]} 26. g3 {[%clk 00:03:22]}
{[%emt 00:00:12]} Re7 {[%clk 00:03:59]} {[%emt 00:01:14]} 27. Qe5 {[%clk
00:02:50]} {[%emt 00:00:38]} Rfe8 {[%clk 00:02:55]} {[%emt 00:01:09]} 28. Rf2
{[%clk 00:01:59]} {[%emt 00:00:55]} Qd7 {[%clk 00:02:50]} {[%emt 00:00:10]} 29.
Rfe2 {[%clk 00:01:57]} {[%emt 00:00:08]} Ba8 {[%clk 00:02:35]} {[%emt
00:00:20]} 30. Kf2 {[%clk 00:01:17]} {[%emt 00:00:44]} Qd5 {[%clk 00:02:07]}
{[%emt 00:00:34]} 31. Qxd5 {[%clk 00:01:16]} {[%emt 00:00:06]} Bxd5 {[%clk
00:02:11]} 32. Nf5 {[%clk 00:00:52]} {[%emt 00:00:29]} Rd7 {[%clk 00:02:07]}
{[%emt 00:00:08]} 33. Nd4 {[%clk 00:00:55]} {[%emt 00:00:02]} Kf7 {[%clk
00:02:05]} {[%emt 00:00:08]} 34. Re5 {[%clk 00:00:57]} {[%emt 00:00:03]} Rde7
{[%clk 00:02:03]} {[%emt 00:00:06]} 35. f5 {[%clk 00:00:21]} {[%emt 00:00:42]}
Kf6 {[%clk 00:02:03]} {[%emt 00:00:05]} 36. fxe6 {[%clk 00:00:16]} {[%emt
00:00:10]} Bxe6 {[%clk 00:02:04]} {[%emt 00:00:03]} 37. Nc6 {[%clk 00:00:12]}
{[%emt 00:00:10]} Rd7 {[%clk 00:02:01]} {[%emt 00:00:08]} 38. Nd4 {[%clk
00:00:15]} {[%emt 00:00:04]} Rde7 {[%clk 00:01:36]} {[%emt 00:00:27]} 39. Rc5
{[%clk 00:00:18]} {[%emt 00:00:01]} Bd7 {[%clk 00:01:02]} {[%emt 00:00:39]} 40.
Rxe7 {[%clk 00:00:15]} {[%emt 00:00:08]} Rxe7 {[%clk 00:01:02]} {[%emt
00:00:05]} 41. Rd5 {[%clk 00:00:14]} {[%emt 00:00:06]} Rf7 {[%clk 00:00:49]}
{[%emt 00:00:18]} 42. Ke2 {[%clk 00:00:10]} {[%emt 00:00:10]} Bg4+ {[%clk
00:00:45]} {[%emt 00:00:09]} 43. Kd2 {[%clk 00:00:11]} {[%emt 00:00:04]} Ke7
{[%clk 00:00:35]} {[%emt 00:00:14]} 44. Nc6+ {[%clk 00:00:11]} {[%emt
00:00:07]} Ke6 {[%clk 00:00:36]} {[%emt 00:00:03]} 45. Rd4 {[%clk 00:00:10]}
{[%emt 00:00:06]} Rf2+ {[%clk 00:00:22]} {[%emt 00:00:19]} 46. Ke1 {[%clk
00:00:09]} {[%emt 00:00:06]} Re2+ {[%clk 00:00:26]} {[%emt 00:00:01]} 47. Kf1
{[%clk 00:00:13]} {[%emt 00:00:01]} Bf3 {[%emt 00:00:15]} 48. Nd8+ {[%clk
00:00:10]} {[%emt 00:00:06]} Ke7 {[%clk 00:00:18]} {[%emt 00:00:05]} 49. Rf4
{[%clk 00:00:09]} {[%emt 00:00:06]} Bh5 {[%clk 00:00:14]} {[%emt 00:00:08]} 50.
Nc6+ {[%clk 00:00:13]} {[%emt 00:00:02]} Kd6 {[%clk 00:00:17]} {[%emt
00:00:02]} 51. Nb8 {[%clk 00:00:10]} {[%emt 00:00:08]} Rxh2 {[%clk 00:00:20]}
{[%emt 00:00:01]} 52. Nxa6 {[%clk 00:00:12]} {[%emt 00:00:04]} Bg6 {[%clk
00:00:22]} {[%emt 00:00:03]} 53. Nc5 {[%clk 00:00:12]} {[%emt 00:00:05]} Bd3+
{[%clk 00:00:23]} {[%emt 00:00:03]} 54. Nxd3 {[%clk 00:00:16]} {[%emt
00:00:02]} cxd3 {[%clk 00:00:27]} {[%emt 00:00:01]} 55. Rd4+ {[%clk 00:00:20]}
Ke5 {[%clk 00:00:30]} {[%emt 00:00:03]} 56. Rxd3 {[%clk 00:00:24]} Ra2 {[%clk
00:00:31]} {[%emt 00:00:05]} 57. Rd7 {[%clk 00:00:14]} {[%emt 00:00:15]} Rxa3
{[%clk 00:00:33]} {[%emt 00:00:03]} 58. Rxg7 {[%clk 00:00:17]} {[%emt
00:00:02]} Rxc3 {[%clk 00:00:37]} {[%emt 00:00:01]} 59. Rxh7 {[%clk 00:00:19]}
{[%emt 00:00:03]} Rxg3 {[%clk 00:00:34]} {[%emt 00:00:07]} 60. Rh5+ {[%clk
00:00:23]} {[%emt 00:00:01]} Kd4 {[%clk 00:00:32]} {[%emt 00:00:07]} 61. Rxb5
{[%clk 00:00:27]} {[%emt 00:00:02]} Kc4 {[%clk 00:00:36]} 62. Ke1 {[%emt
00:00:07]} 1/2-1/2